bitfinex/quotes_SOLUSD_20260208
["timestamp","ask_amount","ask_price","bid_price","bid_amount"]
[1770552626109,0.82309283,88.104,88.049,28.39328101]
[1770552627210,0.82309283,88.104,88.052,5.13032502]
[1770552627992,0.82309283,88.102,88.053,39.74878765]
[1770552630903,0.82309283,88.1,88.042,39.75375388]
[1770552632131,11.35086663,88.099,88.042,39.75375388]
[1770552632314,0.82309283,88.098,88.042,39.75375388]
[1770552634312,0.82309283,88.096,88.042,39.75375388]
[1770552635435,0.82309283,88.094,88.042,39.75375388]
[1770552636500,0.82309283,88.092,88.042,39.75375388]
[1770552639820,11.35189746,88.091,88.042,39.75375388]
[1770552640006,0.82309283,88.09,88.042,39.75375388]
[1770552641320,28.37845507,88.095,88.042,39.75375388]
[1770552641321,0.82309283,88.088,88.042,39.75375388]
[1770552641742,0.82309283,88.098,88.042,39.75375388]
[1770552642029,0.82309283,88.104,88.042,54.92775531]
[1770552643103,39.72622952,88.103,88.042,54.92775531]
[1770552643324,0.82309283,88.102,88.042,39.75375388]
[1770552643616,0.82309283,88.102,88.042,11.35821539]
[1770552644603,0.82309283,88.1,88.042,11.35821539]
[1770552646425,0.82309283,88.098,88.042,11.35821539]
[1770552649632,0.82309283,88.096,88.042,11.35821539]
[1770552652232,0.82309283,88.094,88.042,11.35821539]
[1770552656537,0.82309283,88.092,88.042,11.35821539]
[1770552657837,0.82309283,88.092,88.045,5.13032502]
[1770552658036,0.82309283,88.092,88.046,1.9]
[1770552658622,0.82309283,88.09,88.047,11.35757038]
[1770552660748,0.82309283,88.088,88.043,11.35806466]
[1770552661853,0.82309283,88.088,88.042,11.3581273]
[1770552662142,0.82309283,88.088,88.046,11.35767581]
[1770552662820,0.82309283,88.086,88.04,0.2]
[1770552664823,0.82309283,88.084,88.041,11.3583444]
[1770552667041,11.35292848,88.083,88.041,11.3583444]
[1770552667245,0.82309283,88.082,88.041,11.3583444]
[1770552669750,0.82309283,88.08,88.041,11.3583444]
[1770552673451,0.82309283,88.078,88.041,11.3583444]
[1770552676951,0.82309283,88.076,88.041,11.3583444]
[1770552681865,0.82309283,88.074,88.041,11.3583444]
[1770552683638,0.82309283,88.074,88.041,39.75420541]
[1770552685034,0.82309283,88.117,88.044,5.13032502]
[1770552685656,0.82309283,88.115,88.048,5.13032502]
[1770552686958,0.82309283,88.113,88.052,5.13032502]
[1770552689059,0.82309283,88.111,88.053,39.74878765]
[1770552691460,0.82309283,88.109,88.056,5.13032502]
[1770552692547,0.82309283,88.109,88.06,5.13032502]
[1770552693363,0.82309283,88.109,88.061,1.9]
[1770552693746,0.82309283,88.109,88.062,118.95776762]
[1770552693941,0.82309283,88.109,88.071,5.13032502]
[1770552694464,0.82309283,88.126,88.071,5.13032502]
[1770552695160,0.82309283,88.125,88.063,1.9]
[1770552695361,0.82309283,88.125,88.062,39.7447253]
[1770552699048,0.82309283,88.123,88.062,28.3890895]
[1770552704848,0.82309283,88.121,88.062,28.3890895]
[1770552710666,39.71856558,88.12,88.062,28.3890895]
[1770552710876,0.82309283,88.119,88.062,28.3890895]
[1770552715673,0.82309283,88.117,88.062,28.3890895]
[1770552718063,0.82309283,88.115,88.062,28.3890895]
[1770552720863,0.82309283,88.113,88.062,28.3890895]
[1770552724366,0.82309283,88.111,88.062,28.3890895]
[1770552727591,0.82309283,88.109,88.041,39.75420541]
[1770552727881,0.82309283,88.109,88.044,5.13032502]
[1770552728087,0.82309283,88.109,88.041,39.75420541]
[1770552729690,0.82309283,88.107,88.041,39.75420541]
[1770552730090,0.82309283,88.107,88.041,11.3583444]
[1770552730272,0.82309283,88.104,88.033,11.35932188]
[1770552730584,0.82309283,88.104,88.041,11.3583444]
[1770552731188,0.82309283,88.104,88.037,11.35885854]
[1770552731889,0.82309283,88.099,88.026,11.36016751]
[1770552733192,0.82309283,88.094,88.04,1e-08]
[1770552734297,0.82309283,88.094,88.03,1e-08]
[1770552735387,0.82309283,88.089,88.03,1e-08]
[1770552737289,0.82309283,88.087,88.03,1e-08]
[1770552739392,0.82309283,88.085,88.03,1e-08]
[1770552741581,0.82309283,88.083,88.03,1e-08]
[1770552742378,0.82309283,88.083,88.031,5.13032502]
[1770552743894,0.82309283,88.081,88.032,39.75826971]
[1770552745890,11.35331516,88.08,88.032,39.75826971]
[1770552746193,0.82309283,88.079,88.032,39.75826971]
[1770552747988,0.82309283,88.077,88.032,39.75826971]
[1770552748485,0.82309283,88.077,88.032,11.35950563]
[1770552751200,0.82309283,88.075,88.03,1e-08]
[1770552752303,0.82309283,88.073,88.03,1e-08]
[1770552753508,0.82309283,88.071,88.03,1e-08]
[1770552755505,0.82309283,88.069,88.03,1e-08]
[1770552757908,0.82309283,88.067,88.03,1e-08]
[1770552758903,56.7562761,88.096,88.03,1e-08]
[1770552758904,0.82309283,88.065,88.03,1e-08]
[1770552760007,0.82309283,88.065,88.004,11.36303534]
[1770552760309,0.82309283,88.065,88.008,11.36256374]
[1770552760993,0.82309283,88.063,88.008,11.36256374]
[1770552762710,56.76769164,88.079,88.008,11.36256374]
[1770552762711,0.82309283,88.061,88.008,11.36256374]
[1770552763091,0.82309283,88.061,88.011,11.36221608]
[1770552764712,0.82309283,88.059,88.011,11.36221608]
[1770552766506,0.82309283,88.057,88.011,11.36221608]
[1770552766811,0.82309283,88.057,88.006,11.36273303]
[1770552766993,0.82309283,88.057,88.002,11.36337369]
[1770552767194,0.82309283,88.057,87.996,11.36409734]
[1770552767705,0.82309283,88.057,88.004,11.36304624]
[1770552768093,0.82309283,88.057,88.0,11.56362247]
[1770552768811,0.82309283,88.055,88.0,11.56362247]
[1770552769509,0.82309283,88.055,88.01,1e-08]
[1770552770811,0.82309283,88.053,88.01,1e-08]
[1770552771514,0.82309283,88.05,88.01,1e-08]
[1770552771909,0.82309283,88.045,88.01,1e-08]
[1770552772814,0.82309283,88.045,87.99,0.2]
[1770552773512,0.82309283,88.041,87.98,1e-08]
[1770552773700,0.82309283,88.04,87.98,1e-08]
[1770552774011,0.82309283,88.035,87.97,1e-08]
[1770552774196,0.82309283,88.031,87.97,1e-08]
[1770552774400,0.82309283,88.03,87.97,1e-08]
[1770552774611,0.82309283,88.025,87.97,1e-08]
[1770552774812,0.82309283,88.024,87.97,1e-08]
[1770552775712,0.82309283,88.021,87.97,1e-08]
[1770552776014,0.82309283,88.016,87.97,1e-08]
[1770552776216,0.82309283,88.015,87.97,1e-08]
[1770552777911,0.82309283,88.013,87.97,1e-08]
[1770552778095,0.82309283,88.011,87.97,1e-08]
[1770552778295,0.82309283,88.01,87.97,1e-08]
[1770552778518,0.82309283,88.009,87.97,1e-08]
[1770552778818,0.82309283,88.008,87.97,1e-08]
[1770552779113,0.82309283,88.004,87.954,0.46626229]
[1770552779314,0.82309283,88.003,87.954,0.46626229]
[1770552780117,0.82309283,88.001,87.954,0.46626229]
[1770552780308,0.82309283,87.999,87.954,0.46626229]
[1770552780502,0.82309283,87.998,87.954,0.46626229]
[1770552780703,0.82309283,87.998,87.95,0.2]
[1770552780704,0.82309283,87.997,87.95,0.2]
[1770552780914,0.82309283,87.996,87.95,0.2]
[1770552781119,0.82309283,87.995,87.95,0.2]
[1770552781298,0.82309283,87.994,87.95,0.2]
[1770552781494,0.82309283,87.993,87.95,0.2]
[1770552781701,0.82309283,87.992,87.95,0.2]
[1770552781895,0.82309283,87.991,87.95,1e-08]
[1770552782095,0.82309283,87.988,87.95,1e-08]
[1770552784308,7.30652161,87.991,87.95,1e-08]
[1770552784508,0.82309283,88.027,87.952,5.13032502]
[1770552784816,0.82309283,88.027,87.96,5.13032502]
[1770552785412,0.82309283,88.034,87.96,5.13032502]
[1770552785602,0.82309283,88.034,87.96,5.63032502]
[1770552785803,0.82309283,88.034,87.96,5.13032502]
[1770552786105,0.82309283,88.034,87.961,5.13032502]
[1770552786416,0.82309283,88.032,87.962,39.78990927]
[1770552787813,0.82309283,88.03,87.962,39.78990927]
[1770552788117,0.82309283,88.03,87.967,5.36086188]
[1770552788426,0.82309283,88.03,87.97,5.13032502]
[1770552789520,0.82309283,88.03,87.962,39.78990927]
[1770552789718,0.82309283,88.028,87.962,39.78990927]
[1770552790807,0.82309283,88.026,87.962,39.78990927]
[1770552791105,0.82309283,88.026,87.962,11.3685455]
[1770552791305,0.82309283,88.025,87.958,22.41363762]
[1770552791706,0.82309283,88.022,87.958,22.41363762]
[1770552792912,7.29600382,88.026,87.95,1e-08]
[1770552792913,0.82309283,88.017,87.95,1e-08]
[1770552793118,0.82309283,88.016,87.95,1e-08]
[1770552794211,0.82309283,88.011,87.95,1e-08]
[1770552794529,0.82309283,88.007,87.94,1e-08]
[1770552794733,0.82309283,88.006,87.94,1e-08]
[1770552794917,0.82309283,88.002,87.94,1e-08]
[1770552795122,0.82309283,88.001,87.94,1e-08]
[1770552795312,0.82309283,87.997,87.94,1e-08]
[1770552795628,0.82309283,87.996,87.94,1e-08]
[1770552795809,0.82309283,87.992,87.94,1e-08]
[1770552796008,0.82309283,87.991,87.94,1e-08]
[1770552796229,0.82309283,87.986,87.94,1e-08]
[1770552796424,0.82309283,87.982,87.94,1e-08]
[1770552796731,0.82309283,87.981,87.94,1e-08]
[1770552796945,0.82309283,87.977,87.94,1e-08]
[1770552797137,0.82309283,87.976,87.94,1e-08]
[1770552797434,0.82309283,87.975,87.94,1e-08]
[1770552798233,0.82309283,87.973,87.94,1e-08]
[1770552798427,0.82309283,87.971,87.94,1e-08]
[1770552798728,0.82309283,87.97,87.94,1e-08]
[1770552798934,0.82309283,87.969,87.94,1e-08]
[1770552799128,0.82309283,87.968,87.94,1e-08]
[1770552799325,0.82309283,87.964,87.94,1e-08]
[1770552799628,0.82309283,87.963,87.94,1e-08]
[1770552800532,0.82309283,87.961,87.94,1e-08]
[1770552801216,0.82309283,87.961,87.898,11.37675465]
[1770552801410,0.82309283,87.961,87.88,28.44764601]
[1770552801411,0.82309283,87.96,87.893,11.37742343]
[1770552801611,0.82309283,87.96,87.893,11.37737194]
[1770552801912,0.82309283,87.957,87.863,28.45308306]
[1770552802111,0.82309283,87.957,87.868,11.3805897]
[1770552802619,0.82309283,87.952,87.868,11.3805897]
[1770552802827,0.82309283,87.948,87.868,11.3805897]
[1770552803122,0.82309283,87.947,87.873,11.38005985]
[1770552803323,0.82309283,87.946,87.873,39.83020949]
[1770552804824,0.82309283,87.944,87.873,39.83020949]
[1770552805731,0.82309283,87.942,87.873,39.83020949]
[1770552806928,0.82309283,87.94,87.873,39.83020949]
[1770552809126,0.82309283,87.938,87.873,39.83020949]
[1770552811554,0.82309283,87.936,87.873,11.38005985]
[1770552812049,0.82309283,87.936,87.873,39.83020949]
[1770552813333,0.82309283,87.934,87.873,39.83020949]
[1770552815025,0.82309283,87.932,87.873,39.83020949]
[1770552817228,0.82309283,87.93,87.876,5.13032502]
[1770552818753,0.82309283,87.928,87.88,5.13032502]
[1770552819947,0.82309283,87.928,87.877,11.37954185]
[1770552820536,0.82309283,87.928,87.877,39.82839649]
[1770552820737,0.82309283,87.926,87.877,28.44885464]
[1770552822346,0.82309283,87.926,87.873,11.38005985]
[1770552822852,0.82309283,87.924,87.873,11.38005985]
[1770552824244,0.82309283,87.924,87.873,39.83020949]
[1770552824751,39.80755888,87.923,87.873,11.38005985]
[1770552825071,0.82309283,87.922,87.873,11.38005985]
[1770552826354,0.82309283,87.92,87.873,11.38005985]
[1770552828963,11.37410571,87.919,87.873,11.38005985]
[1770552829260,0.82309283,87.918,87.873,11.38005985]
[1770552829857,0.82309283,87.918,87.873,39.83020949]
[1770552830158,0.82309283,87.918,87.873,11.38005985]
[1770552831157,0.82309283,87.916,87.873,11.38005985]
[1770552832340,0.82309283,87.914,87.873,11.38005985]
[1770552834260,0.82309283,87.914,87.873,39.83020949]
[1770552834855,11.37488198,87.913,87.873,39.83020949]
[1770552835059,0.82309283,87.912,87.873,39.83020949]
[1770552835448,0.82309283,87.912,87.873,11.38005985]
[1770552837057,0.82309283,87.91,87.873,11.38005985]
[1770552837259,0.82309283,87.91,87.868,11.38061056]
[1770552837665,0.82309283,87.91,87.872,30.74720681]
[1770552838861,0.82309283,87.908,87.872,30.74720681]
[1770552840862,0.82309283,87.929,87.872,59.19768022]
[1770552843546,7.11663557,87.932,87.876,10.4911869]
[1770552843754,0.82309283,87.931,87.876,10.4911869]
[1770552844268,7.11663557,87.932,87.876,10.4911869]
[1770552844650,0.82309283,87.931,87.876,10.4911869]
[1770552844851,7.11663557,87.932,87.876,10.4911869]
[1770552845050,0.82309283,87.931,87.876,10.4911869]
[1770552846267,0.82309283,87.931,87.877,39.82839649]
[1770552846565,0.82309283,87.931,87.881,5.13032502]
[1770552848165,0.82309283,87.931,87.88,5.13032502]
[1770552848480,0.82309283,87.931,87.884,5.13032502]
[1770552849587,0.82309283,87.93,87.884,5.13032502]
[1770552850757,0.82309283,87.93,87.888,5.13032502]
[1770552852675,0.82309283,87.93,87.892,5.13032502]
[1770552854763,0.82309283,87.928,87.893,11.37747033]
[1770552855855,0.82309283,87.928,87.893,39.82114616]
[1770552856973,0.82309283,87.928,87.875,50.32048988]
[1770552859678,7.11663557,87.932,87.875,107.21949414]
[1770552859862,7.11663557,87.932,87.88,10.4911869]
[1770552860063,7.11663557,87.932,87.885,10.4911869]
[1770552860263,7.11663557,87.932,87.89,5.13032502]
[1770552860958,1e-08,87.932,87.898,5.13032502]
[1770552861978,1e-08,87.932,87.902,5.13032502]
[1770552864083,1e-08,87.932,87.906,5.13032502]
[1770552865172,1e-08,87.932,87.91,5.13032502]
[1770552867084,1e-08,87.932,87.892,5.36086188]
[1770552867474,1e-08,87.932,87.895,5.13032502]
[1770552868981,1e-08,87.932,87.896,39.81978701]
[1770552869283,1e-08,87.932,87.9,5.13032502]
[1770552870100,1e-08,87.932,87.899,5.13032502]
[1770552871483,1e-08,87.932,87.903,5.13032502]
[1770552873988,0.82309283,87.977,87.908,10.4911869]
[1770552877292,0.82309283,87.975,87.912,5.13032502]
[1770552879395,39.78448177,87.974,87.913,11.37488198]
[1770552879585,0.82309283,87.973,87.913,11.37488198]
[1770552879986,0.82309283,87.973,87.898,28.44175568]
[1770552880190,0.82309283,87.973,87.907,11.3755877]
[1770552880692,0.82309283,87.971,87.907,11.3755877]
[1770552880889,0.82309283,87.969,87.907,11.3755877]
[1770552881706,0.82309283,87.967,87.888,5.13032502]
[1770552881996,0.82309283,87.965,87.888,5.13032502]
[1770552882893,39.78719533,87.968,87.885,39.824771]
[1770552882894,0.82309283,87.96,87.885,11.378506]
[1770552883593,0.82309283,87.958,87.878,10.4911869]
[1770552883781,0.82309283,87.958,87.885,28.446265]
[1770552884578,0.82309283,87.958,87.89,0.5]
[1770552886096,0.82309283,87.956,87.891,39.82205231]
[1770552887605,0.82309283,87.954,87.891,39.82205231]
[1770552887899,0.82309283,87.954,87.891,11.37772923]
[1770552888887,0.82309283,87.952,87.891,11.37772923]
[1770552892630,0.82309283,87.949,87.891,11.37772923]
[1770552892796,0.82309283,87.948,87.891,11.37772923]
[1770552894212,0.82309283,87.948,87.891,39.82205231]
[1770552894614,0.82309283,87.946,87.88,5.13032502]
[1770552897216,0.82309283,87.944,87.881,39.82658366]
[1770552898292,0.82309283,87.942,87.881,39.82658366]
[1770552900207,0.82309283,87.942,87.885,107.20848791]
[1770552900710,102.9,87.949,87.885,121.54424002]
[1770552900917,0.82309283,87.955,87.89,10.4911869]
[1770552901099,0.82309283,87.955,87.895,10.4911869]
[1770552901512,0.82309283,87.955,87.895,24.82693901]
[1770552902103,0.82309283,87.955,87.9,10.4911869]
[1770552903899,0.82309283,87.955,87.9,24.82693901]
[1770552904105,0.82309283,87.972,87.905,10.4911869]
[1770552904304,0.82309283,87.972,87.91,10.4911869]
[1770552906023,0.82309283,87.972,87.915,10.4911869]
[1770552907519,0.82309283,87.972,87.919,5.13032502]
[1770552907721,0.82309283,87.97,87.919,5.13032502]
[1770552910323,0.82309283,87.968,87.923,5.13032502]
[1770552915929,0.82309283,87.966,87.924,39.80710613]
[1770552922733,0.82309283,87.964,87.924,39.80710613]
[1770552924811,0.82309283,87.962,87.924,39.80710613]
[1770552926020,0.82309283,87.962,87.911,56.87570383]
[1770552931638,0.68143738,87.962,87.911,56.87570383]
[1770552934231,0.7522651,87.96,87.911,56.87570383]
[1770552934630,0.7522651,87.96,87.91,5.13032502]
[1770552934943,0.7522651,87.96,87.907,39.81480427]
[1770552936347,0.7522651,87.958,87.898,5.13032502]
[1770552937422,0.7522651,87.958,87.895,39.82024005]
[1770552938426,56.83948435,87.968,87.895,39.82024005]
[1770552938427,0.7522651,87.956,87.895,39.82024005]
[1770552940559,39.79307599,87.955,87.895,39.82024005]
[1770552940728,0.7522651,87.954,87.895,39.82024005]
[1770552944237,39.79398087,87.953,87.895,39.82024005]
[1770552944444,0.7522651,87.952,87.895,39.82024005]
[1770552946546,0.7522651,87.95,87.895,39.82024005]
[1770552948333,0.7522651,87.948,87.895,39.82024005]
[1770552949136,39.79579073,87.949,87.874,5.94071962]
[1770552949137,0.7522651,87.946,87.874,5.94071962]
[1770552949634,0.7522651,87.946,87.87,28.65102206]
[1770552949853,0.7522651,87.946,87.891,11.37766966]
[1770552950054,0.7522651,87.946,87.895,11.37721144]
[1770552950439,0.7522651,87.944,87.895,11.37721144]
[1770552950939,0.7522651,87.944,87.89,11.3777299]
[1770552951149,0.7522651,87.944,87.894,40.86208588]
[1770552952539,0.7522651,87.942,87.894,29.48474561]
[1770552953454,0.7522651,87.942,87.87,0.2]
[1770552953455,0.7522651,87.94,87.875,11.37977726]
[1770552953756,0.7522651,87.938,87.875,11.37977726]
[1770552954549,0.7522651,87.936,87.871,11.38031887]
[1770552955148,0.7522651,87.933,87.871,11.38031887]
[1770552955350,5.13032502,87.934,87.87,0.2]
[1770552955351,0.7522651,87.931,87.87,0.2]
[1770552955755,0.7522651,87.929,87.87,0.2]
[1770552956353,0.7522651,87.927,87.87,0.2]
[1770552957062,96.67000271,87.928,87.87,0.2]
[1770552957063,0.7522651,87.925,87.87,0.2]
[1770552957860,0.7522651,87.922,87.87,0.2]
[1770552958061,0.6522651,87.917,87.83,0.2]
[1770552958255,0.6522651,87.917,87.841,11.38413839]
[1770552958560,0.6522651,87.912,87.841,11.38413839]
[1770552958763,0.6522651,87.912,87.83,11.58557493]
[1770552959064,0.6522651,87.912,87.834,11.38509108]
[1770552960644,0.6522651,87.907,87.838,39.75123686]
[1770552961849,0.6522651,87.902,87.838,39.75123686]
[1770552963168,0.6522651,87.902,87.838,68.21272277]
[1770552963366,0.6522651,87.902,87.841,5.13032502]
[1770552963773,0.6522651,87.9,87.845,5.13032502]
[1770552964452,0.6522651,87.917,87.849,5.13032502]
[1770552966361,11.37449383,87.916,87.853,5.13032502]
[1770552966666,0.6522651,87.915,87.85,39.84063744]
[1770552968654,0.6522651,87.912,87.85,28.45759817]
[1770552969858,0.6522651,87.91,87.85,28.45759817]
[1770552970059,0.6522651,87.908,87.85,28.45759817]
[1770552971461,0.6522651,87.906,87.839,39.84562664]
[1770552972572,0.6522651,87.904,87.839,39.84562664]
[1770552973089,0.6522651,87.904,87.842,5.13032502]
[1770552974678,0.6522651,87.902,87.843,11.38394635]
[1770552977076,0.6522651,87.9,87.839,11.38446475]
[1770552978766,0.6522651,87.9,87.838,28.36670407]
[1770552978968,0.6522651,87.892,87.838,28.36670407]
[1770552979169,0.6522651,87.89,87.838,28.36670407]
[1770552980473,0.6522651,87.89,87.839,11.38446475]
[1770552980679,0.6522651,87.89,87.838,28.36670407]
[1770552981179,0.6522651,87.888,87.838,28.36670407]
[1770552983383,0.6522651,87.885,87.838,28.36670407]
[1770552985367,0.6522651,87.883,87.839,11.38446475]
[1770552986791,0.6522651,87.881,87.839,11.38446475]
[1770552987192,0.6522651,87.881,87.838,28.36670407]
[1770552988496,102.9,87.898,87.838,28.36670407]
[1770552988497,0.6522651,87.879,87.838,28.36670407]
[1770552990376,0.6522651,87.877,87.838,28.36670407]
[1770552991988,0.6522651,87.875,87.838,28.36670407]
[1770552992197,0.6522651,87.873,87.838,28.36670407]
[1770552992376,0.6522651,87.871,87.838,28.36670407]
[1770552993472,0.6522651,87.871,87.838,39.75119539]
[1770552993771,0.6522651,87.871,87.838,28.36670407]
[1770552994193,102.9,87.872,87.839,28.46116189]
[1770552994572,103.5522651,87.872,87.839,28.46116189]
[1770552995090,0.6522651,87.878,87.839,39.84562664]
[1770552996593,0.6522651,87.889,87.839,39.84562664]
[1770552998687,7.13641675,87.893,87.844,5.36086188]
[1770552998893,7.13641675,87.893,87.846,5.36086188]
[1770552999187,7.13641675,87.893,87.843,10.4911869]
[1770552999384,56.85419143,87.945,87.843,10.4911869]
[1770552999385,0.6522651,87.908,87.843,10.4911869]
[1770553000693,0.6522651,87.908,87.848,10.4911869]
[1770553002679,0.6522651,87.904,87.848,39.84154448]
[1770553003287,0.6522651,87.904,87.848,96.7580366]
[1770553005988,0.6522651,87.902,87.848,96.7580366]
[1770553023503,0.6522651,87.907,87.859,5.13032502]
[1770553024318,102.9,87.925,87.859,5.13032502]
[1770553024515,11.37041924,87.948,87.876,5.36086188]
[1770553024703,11.37041924,87.948,87.892,0.34802523]
[1770553025506,11.36903981,87.959,87.898,5.70888378]
[1770553025819,11.36903981,87.959,87.899,0.3480219]
[1770553026526,0.4923102,87.958,87.899,0.3480219]
[1770553027027,0.4923102,87.982,87.905,0.34801212]
[1770553027222,0.4923102,87.982,87.91,10.4911869]
[1770553027522,0.4923102,87.982,87.911,0.34801212]
[1770553027704,0.4923102,87.98,87.917,0.34801212]
[1770553028914,0.4923102,87.98,87.912,111.02334878]
[1770553028915,0.4923102,87.98,87.927,0.34800579]
[1770553030025,0.4923102,87.98,87.929,0.34773489]
[1770553031730,28.40620264,88.009,87.937,0.34773489]
[1770553031731,0.4923102,87.999,87.937,0.34773489]
[1770553032021,0.4923102,87.999,87.942,0.34773489]
[1770553032416,0.4923102,87.999,87.943,0.34773489]
[1770553033431,0.4923102,87.997,87.943,0.34773489]
[1770553033621,39.77363121,87.998,87.939,42.44716684]
[1770553033622,0.4923102,87.992,87.939,42.44716684]
[1770553034228,0.4838311,87.99,87.939,42.44716684]
[1770553035532,0.4838311,87.988,87.939,42.44716684]
[1770553036905,0.4838311,87.988,87.941,0.34773489]
[1770553037618,0.4838311,87.988,87.943,0.34773489]
[1770553039725,0.4838311,87.986,87.945,0.34773489]
[1770553040431,0.1,88.0,87.945,0.34773489]
[1770553040432,0.5838311,88.0,87.949,0.34773489]
[1770553041540,0.5838311,88.0,87.951,0.34773489]
[1770553042034,0.4838311,87.998,87.951,0.34773489]
[1770553043519,0.4838311,87.998,87.952,39.79443332]
[1770553043721,0.4838311,87.998,87.953,0.34773489]
[1770553044239,0.5838311,88.0,87.953,0.34773489]
[1770553045220,0.4838311,87.998,87.953,0.34773489]
[1770553045736,0.4838311,87.998,87.955,0.34773489]
[1770553047738,0.4838311,87.996,87.957,0.34773489]
[1770553050024,0.4838311,87.996,87.959,0.34773489]
[1770553051045,0.4838311,87.996,87.961,0.34773489]
[1770553051845,0.4838311,87.994,87.96,11.368804]
[1770553052840,0.4838311,87.994,87.96,11.71653889]
[1770553053041,0.4838311,87.994,87.961,0.34773489]
[1770553056435,0.4838311,87.994,87.962,11.3685455]
[1770553056635,0.4838311,87.994,87.963,0.34773489]
[1770553057543,0.1,88.0,87.963,0.34773489]
[1770553058542,0.47988822,88.013,87.967,5.13032502]
[1770553058840,0.47988822,88.013,87.966,0.34773489]
[1770553058841,0.47988822,88.013,87.969,0.34773489]
[1770553059230,0.47988822,88.019,87.969,0.34773489]
[1770553059639,0.1,88.02,87.978,0.34773489]
[1770553059837,0.1,88.02,87.964,96.63043971]
[1770553059838,0.47988822,88.042,87.986,0.34773489]
[1770553060044,0.57988822,88.04,87.986,0.34773489]
[1770553060747,0.57988822,88.04,87.988,0.34773489]
[1770553063251,0.57988822,88.04,87.99,0.34773489]
[1770553064452,0.47988822,88.038,87.99,0.34773489]
[1770553065273,0.47988822,88.036,87.992,0.34773489]
[1770553068136,0.47988822,88.036,87.994,0.34773489]
[1770553068849,0.47988822,88.034,87.994,0.34773489]
[1770553070840,0.47988822,88.034,87.996,0.34773489]
[1770553071334,0.47988822,88.032,87.995,11.36428206]
[1770553071537,0.47988822,88.032,87.961,56.84310589]
[1770553071538,0.47988822,88.032,87.974,0.34773489]
[1770553071742,39.75781808,88.033,87.966,11.3679472]
[1770553071743,0.47988822,88.029,87.966,11.3679472]
[1770553072041,0.47988822,88.029,87.974,11.36697639]
[1770553072251,0.47988822,88.029,87.978,11.36645751]
[1770553072556,0.47988822,88.029,87.969,0.34773489]
[1770553072772,0.47988822,88.029,87.982,11.3659161]
[1770553073555,0.47988822,88.027,87.971,0.34773489]
[1770553074154,0.47988822,88.027,87.964,11.36827388]
[1770553074551,0.47988822,88.027,87.964,11.71600877]
[1770553074744,0.47988822,88.027,87.964,11.36827388]
[1770553075149,0.47988822,88.027,87.968,11.36766586]
[1770553075465,0.47988822,88.027,87.971,0.34773489]
[1770553075664,0.47988822,88.025,87.973,0.34773489]
[1770553077642,0.47988822,88.023,87.975,0.34773489]
[1770553080461,0.47988822,88.023,87.974,39.78448177]
[1770553080462,0.47988822,88.021,87.977,0.34773489]
[1770553081667,0.47988822,88.021,87.979,0.34773489]
[1770553081959,0.47988822,88.019,87.978,11.36647798]
[1770553082165,0.47988822,88.019,87.973,0.34773489]
[1770553082752,0.47988822,88.019,87.95,0.34773489]
[1770553083061,5.13032502,88.017,87.95,0.34773489]
[1770553083380,0.47988822,88.014,87.95,0.34773489]
[1770553084282,0.47988822,88.009,87.951,0.34773489]
[1770553084566,0.47988822,88.007,87.951,0.34773489]
[1770553085964,0.47988822,88.007,87.952,0.34773489]
[1770553087473,0.49203705,88.005,87.954,0.34773489]
[1770553088762,0.49203705,88.005,87.953,11.36970882]
[1770553088763,0.49203705,88.005,87.957,0.34773489]
[1770553089472,0.49203705,88.004,87.959,0.34773489]
[1770553090378,0.49203705,88.016,87.959,0.34773489]
[1770553094061,0.49203705,88.03,87.962,0.34773489]
[1770553094261,0.49203705,88.03,87.967,5.13032502]
[1770553094580,0.49203705,88.03,87.968,0.34773489]
[1770553095078,7.14797845,88.032,87.985,5.36086188]
[1770553095261,0.48804217,88.038,87.988,0.34773489]
[1770553096684,0.48804217,88.038,87.993,0.34773489]
[1770553097767,0.48804217,88.059,87.998,0.24773489]
[1770553098483,0.48804217,88.054,87.998,0.24773489]
[1770553099280,0.48804217,88.054,88.004,0.24773489]
[1770553099481,0.48804217,88.049,88.004,0.24773489]
[1770553101886,0.48804217,88.049,88.006,0.24773489]
[1770553102679,0.48804217,88.049,88.008,0.24773489]
[1770553103590,0.48804217,88.055,88.008,0.24773489]
[1770553104277,0.48804217,88.055,88.01,0.24773489]
[1770553105494,0.58804217,88.05,88.012,0.24773489]
[1770553106480,0.48804217,88.059,88.015,0.24773489]
[1770553106684,11.35171148,88.093,88.016,0.24773489]
[1770553107593,11.35171148,88.093,87.995,14.33575211]
[1770553107594,11.35171148,88.093,88.025,5.36086188]
[1770553108688,0.48804217,88.092,88.025,5.36086188]
[1770553109291,0.48804217,88.092,88.027,5.36086188]
[1770553109491,0.48804217,88.092,88.028,0.46811406]
[1770553109679,0.48804217,88.09,88.03,0.46811406]
[1770553111589,0.48804217,88.088,88.032,0.46811406]
[1770553114005,0.48804217,88.086,88.034,0.46811406]
[1770553116004,0.49891911,88.084,88.036,0.45594181]
[1770553118198,0.49891911,88.084,88.038,0.45594181]
[1770553119195,0.49891911,88.084,88.04,0.45594181]